bitfinex/quotes_BTCUSD_20250223
["timestamp","ask_amount","ask_price","bid_price","bid_amount"]
[1740289036818,0.63509051,96445.0,96444.0,0.0008504]
[1740289037638,0.62480221,96445.0,96444.0,0.0008504]
[1740289042507,0.46927321,96445.0,96444.0,0.0008504]
[1740289043129,0.62480221,96445.0,96444.0,0.0008504]
[1740289043293,0.61780221,96445.0,96444.0,0.0008504]
[1740289043491,0.61980221,96445.0,96444.0,0.0008504]
[1740289043709,0.62180221,96445.0,96444.0,0.0008504]
[1740289043909,0.61980221,96445.0,96444.0,0.0008504]
[1740289044145,0.61780221,96445.0,96444.0,0.0008504]
[1740289044368,0.61980221,96445.0,96444.0,0.0008504]
[1740289047809,0.46427321,96445.0,96444.0,0.0008504]
[1740289048042,0.03192752,96445.0,96444.0,0.0008504]
[1740289048422,0.003701,96445.0,96444.0,0.0008504]
[1740289049012,0.002701,96445.0,96444.0,0.0008504]
[1740289049729,0.001701,96445.0,96444.0,0.0008504]
[1740289049926,0.02373185,96445.0,96444.0,0.0008504]
[1740289050125,0.001701,96445.0,96444.0,0.0008504]
[1740289050735,0.001701,96445.0,96444.0,0.0018504]
[1740289056724,0.02373419,96445.0,96444.0,0.0018504]
[1740289056908,0.001701,96445.0,96444.0,0.0018504]
[1740289060228,0.0237274,96445.0,96444.0,0.0018504]
[1740289060407,0.001701,96445.0,96444.0,0.0018504]
[1740289066383,0.001701,96445.0,96444.0,0.00509538]
[1740289067144,0.02372743,96445.0,96444.0,0.00509538]
[1740289067305,0.001701,96445.0,96444.0,0.00509538]
[1740289071524,0.15723,96445.0,96444.0,0.00509538]
[1740289072531,0.17925643,96445.0,96444.0,0.00509538]
[1740289073282,0.28190212,96445.0,96444.0,0.00509538]
[1740289074046,0.29213808,96445.0,96444.0,0.00509538]
[1740289074386,0.29213808,96445.0,96444.0,0.0018504]
[1740289074631,0.42383808,96445.0,96444.0,0.0008504]
[1740289074830,0.75353808,96445.0,96444.0,0.0008504]
[1740289075697,0.75453808,96445.0,96444.0,0.0008504]
[1740289075911,0.75353808,96445.0,96444.0,0.0008504]
[1740289076112,0.75553808,96445.0,96444.0,0.0008504]
[1740289076331,0.75753808,96445.0,96444.0,0.0008504]
[1740289077137,0.76253808,96445.0,96444.0,0.0008504]
[1740289077746,0.76053808,96445.0,96444.0,0.0008504]
[1740289078132,0.76653808,96445.0,96444.0,0.0018504]
[1740289108982,0.7663246,96445.0,96444.0,0.0018504]
[1740289122018,0.6832246,96445.0,96444.0,0.0018504]
[1740289125855,0.6346246,96445.0,96444.0,0.0018504]
[1740289145624,0.62438864,96445.0,96444.0,0.0018504]
[1740289146754,0.61738864,96445.0,96444.0,0.0018504]
[1740289147153,0.61538864,96445.0,96444.0,0.0008504]
[1740289147561,0.61938864,96445.0,96444.0,0.0008504]
[1740289220461,0.46385964,96445.0,96444.0,0.0008504]
[1740289221294,0.45985964,96445.0,96444.0,0.0008504]
[1740289222621,0.46085964,96445.0,96444.0,0.0008504]
[1740289222942,0.46485964,96445.0,96444.0,0.0008504]
[1740289223320,0.36221395,96445.0,96444.0,0.0008504]
[1740289223523,0.36221395,96445.0,96444.0,0.0768504]
[1740289223751,0.35321395,96445.0,96444.0,0.0768504]
[1740289223979,0.35421395,96445.0,96444.0,0.0778504]
[1740289224345,0.35421395,96445.0,96444.0,0.081095]
[1740289224570,0.02351395,96445.0,96444.0,0.082095]
[1740289224967,0.00148752,96445.0,96444.0,0.237625]
[1740289225170,0.00148752,96445.0,96444.0,0.082095]
[1740289225492,0.00148752,96445.0,96444.0,0.237625]
[1740289225701,0.00148752,96445.0,96444.0,0.082095]
[1740289225926,0.00148752,96445.0,96444.0,0.235625]
[1740289226135,0.00148752,96445.0,96444.0,0.237625]
[1740289226510,0.00148752,96445.0,96444.0,0.235625]
[1740289226837,0.00148752,96445.0,96444.0,0.241625]
[1740289227042,0.00148752,96445.0,96444.0,0.238625]
[1740289227385,0.00148752,96445.0,96444.0,0.241625]
[1740289228143,0.00148752,96445.0,96444.0,0.2383804]
[1740289228341,0.00148752,96445.0,96444.0,0.0828504]
[1740289244687,0.00148752,96445.0,96444.0,0.08609475]
[1740289245486,0.00148752,96445.0,96444.0,0.01009475]
[1740289251485,0.00148752,96445.0,96444.0,0.16562475]
[1740289251788,0.00148752,96445.0,96444.0,0.01009475]
[1740289252962,0.00148752,96445.0,96444.0,0.0068504]
[1740289253467,0.02239269,96445.0,96444.0,0.0068504]
[1740289253674,0.00148752,96445.0,96444.0,0.0068504]
[1740289259735,0.02239269,96445.0,96444.0,0.0100948]
[1740289259963,0.00148752,96445.0,96444.0,0.0100948]
[1740289261429,0.00148752,96445.0,96444.0,0.1656248]
[1740289262697,0.00148752,96445.0,96444.0,0.17807656]
[1740289264172,0.00148752,96445.0,96444.0,0.02254656]
[1740289264411,0.00148752,96445.0,96444.0,0.02773759]
[1740289264646,0.00148752,96445.0,96444.0,0.18326759]
[1740289266415,0.00148752,96445.0,96444.0,0.02773759]
[1740289266846,0.00148752,96445.0,96444.0,0.18326759]
[1740289267847,0.00148752,96445.0,96444.0,0.17807656]
[1740289268205,0.00148752,96445.0,96444.0,0.02254656]
[1740289268601,0.00148752,96445.0,96444.0,0.0100948]
[1740289268809,0.00148752,96445.0,96444.0,0.1656248]
[1740289271643,0.00148752,96445.0,96444.0,0.17807893]
[1740289274641,0.00148752,96445.0,96444.0,0.18586419]
[1740289276153,0.00148752,96445.0,96444.0,0.03033419]
[1740289282438,0.03099499,96445.0,96444.0,0.03033419]
[1740289282638,0.00148752,96445.0,96444.0,0.03033419]
[1740289289420,0.00148752,96445.0,96444.0,0.01788006]
[1740289291062,0.00148752,96445.0,96444.0,0.01463566]
[1740289292486,0.15701652,96445.0,96444.0,0.01463566]
[1740289297580,0.18652399,96445.0,96444.0,0.01463566]
[1740289299505,0.03099499,96445.0,96441.0,0.01454085]
[1740289299695,0.03099499,96445.0,96439.0,0.17847728]
[1740289299696,0.155537,96440.0,96439.0,0.17847728]
[1740289299933,0.236037,96440.0,96439.0,0.17847728]
[1740289300134,0.41528638,96440.0,96439.0,0.17847728]
[1740289301306,0.15710369,96440.0,96439.0,0.17847728]
[1740289301537,0.07660369,96440.0,96439.0,0.18247728]
[1740289301778,0.23214069,96440.0,96439.0,0.17847728]
[1740289302204,0.23214069,96440.0,96439.0,0.18047728]
[1740289302738,0.23214069,96440.0,96439.0,0.18147728]
[1740289311827,0.30894069,96440.0,96439.0,0.18147728]
[1740289318697,0.41158638,96440.0,96439.0,0.18147728]
[1740289344030,0.33478638,96440.0,96439.0,0.18147728]
[1740289356388,0.33478638,96440.0,96439.0,0.20094094]
[1740289363351,0.28768638,96440.0,96439.0,0.20094094]
[1740289366055,0.18504069,96440.0,96439.0,0.20094094]
[1740289367002,0.18504069,96440.0,96439.0,0.20418596]
[1740289371141,0.18504069,96440.0,96439.0,0.20094094]
[1740289382173,0.18504069,96440.0,96439.0,0.20418605]
[1740289393734,0.18504069,96440.0,96439.0,0.20094094]
[1740289400050,0.18504069,96440.0,96439.0,0.20418613]
[1740289400818,0.02950369,96440.0,96439.0,0.20418613]
[1740289401241,0.0017008,96442.0,96439.0,0.20418613]
[1740289401447,0.03000453,96441.0,96439.0,0.20418613]
[1740289402003,0.03000453,96441.0,96439.0,0.20318613]
[1740289402206,0.155537,96440.0,96439.0,0.20118613]
[1740289402423,0.03000453,96441.0,96439.0,0.19794094]
[1740289402646,0.03000425,96440.0,96439.0,0.19794094]
[1740289402847,0.155537,96440.0,96439.0,0.19894094]
[1740289403099,0.0017008,96442.0,96439.0,0.19894094]
[1740289403100,0.155535,96441.0,96439.0,0.19894094]
[1740289403313,0.0017008,96442.0,96439.0,0.19794094]
[1740289403522,0.2090808,96442.0,96439.0,0.19994094]
[1740289403731,0.0017008,96442.0,96439.0,0.19994094]
[1740289403935,0.0017008,96442.0,96439.0,0.19794094]
[1740289404142,0.0017008,96442.0,96439.0,0.20094094]
[1740289404649,0.0017008,96442.0,96439.0,0.19994094]
[1740289404975,0.155535,96441.0,96440.0,0.01946366]
[1740289405160,0.0017008,96442.0,96440.0,0.01946366]
[1740289405362,0.1572338,96442.0,96440.0,0.01946366]
[1740289406117,0.0017008,96442.0,96440.0,0.01946366]
[1740289406415,0.155535,96441.0,96440.0,0.01946366]
[1740289406591,0.1572338,96442.0,96440.0,0.02270867]
[1740289406794,0.155535,96441.0,96440.0,0.02370867]
[1740289407233,0.155535,96441.0,96440.0,0.00424501]
[1740289407421,0.1572338,96442.0,96440.0,0.00424501]
[1740289407625,0.0017008,96442.0,96440.0,0.00424501]
[1740289408595,0.0017008,96442.0,96440.0,0.00324501]
[1740289408833,0.0017008,96442.0,96440.0,0.00524501]
[1740289409008,0.0017008,96442.0,96440.0,0.00324501]
[1740289409208,0.0017008,96442.0,96441.0,0.00324501]
[1740289410555,0.0017008,96442.0,96441.0,0.00424501]
[1740289410711,0.0017008,96442.0,96441.0,0.0236967]
[1740289411786,0.0017008,96442.0,96441.0,0.02888828]
[1740289412631,0.1572338,96442.0,96441.0,0.02888828]
[1740289413359,0.0017008,96442.0,96441.0,0.02888828]
[1740289414002,0.1572338,96442.0,96441.0,0.0236967]
[1740289414199,0.0017008,96442.0,96441.0,0.0236967]
[1740289414835,0.1572338,96442.0,96441.0,0.0236967]
[1740289415440,0.0017008,96442.0,96441.0,0.0236967]
[1740289416235,0.1572338,96442.0,96441.0,0.0236967]
[1740289416841,0.0017008,96442.0,96441.0,0.0236967]
[1740289417004,0.1572338,96442.0,96441.0,0.0236967]
[1740289417489,0.1872425,96442.0,96441.0,0.0236967]
[1740289417870,0.0317095,96442.0,96441.0,0.0236967]
[1740289418227,0.1872425,96442.0,96441.0,0.0236967]
[1740289418462,0.1872425,96442.0,96441.0,0.02045169]
[1740289418937,0.1872425,96442.0,96441.0,0.02130209]
[1740289419925,0.0317095,96442.0,96441.0,0.02130209]
[1740289420125,0.1872425,96442.0,96441.0,0.02130209]
[1740289427388,0.1872425,96442.0,96441.0,0.0018504]
[1740289432146,0.2622425,96442.0,96441.0,0.0018504]
[1740289440803,0.2622425,96442.0,96441.0,0.02129357]
[1740289441664,0.1872425,96442.0,96441.0,0.02129357]
[1740289445522,0.1872425,96442.0,96441.0,0.01710657]
[1740289453527,0.1872425,96442.0,96441.0,0.01795697]
[1740289454539,0.1872425,96442.0,96441.0,0.0008504]
[1740289467787,0.28988819,96442.0,96441.0,0.0008504]
[1740289468017,0.37258819,96442.0,96441.0,0.0008504]
[1740289468219,0.41898819,96442.0,96441.0,0.0008504]
[1740289468548,0.74868819,96442.0,96441.0,0.0008504]
[1740289469159,0.74868819,96442.0,96441.0,0.0018504]
[1740289469941,0.74868819,96442.0,96441.0,0.0008504]
[1740289470170,0.74968819,96442.0,96441.0,0.0008504]
[1740289470384,0.75168819,96442.0,96441.0,0.0008504]
[1740289470758,0.75068819,96442.0,96441.0,0.0008504]
[1740289470989,0.75768819,96442.0,96441.0,0.0018504]
[1740289471699,0.75568819,96442.0,96441.0,0.0018504]
[1740289472046,0.76068819,96442.0,96441.0,0.0018504]
[1740289496892,0.75242187,96442.0,96441.0,0.0018504]
[1740289518352,0.61778887,96442.0,96431.0,0.0012506]
[1740289518552,0.61778887,96442.0,96405.0,0.11818943]
[1740289518553,0.296772,96418.0,96405.0,0.11818943]
[1740289518755,0.81187645,96418.0,96405.0,0.11818943]
[1740289518967,0.81351793,96418.0,96405.0,0.11818943]
[1740289519413,0.73761793,96418.0,96405.0,0.11818943]
[1740289519754,0.155588,96408.0,96407.0,0.02004103]
[1740289519963,0.25823369,96408.0,96407.0,0.02004103]
[1740289520169,0.17802608,96408.0,96407.0,0.02047294]
[1740289520914,0.18002608,96408.0,96407.0,0.02047294]
[1740289521527,0.18202608,96408.0,96407.0,0.02047294]
[1740289522503,0.18402608,96408.0,96407.0,0.02047294]
[1740289522917,0.18002608,96408.0,96407.0,0.02047294]
[1740289523294,0.18102608,96408.0,96407.0,0.02132334]
[1740289524499,0.28522762,96408.0,96407.0,0.02132334]
[1740289524722,0.28367177,96408.0,96407.0,0.02132334]
[1740289527102,0.73867177,96408.0,96407.0,0.02132334]
[1740289527900,0.61137177,96408.0,96407.0,0.02132334]
[1740289528317,0.61637177,96408.0,96407.0,0.02132334]
[1740289528752,0.61137177,96408.0,96407.0,0.02132334]
[1740289528954,0.61037177,96408.0,96407.0,0.02132334]
[1740289529092,0.61537177,96408.0,96407.0,0.02132334]
[1740289529291,0.61837177,96408.0,96407.0,0.02132334]
[1740289530397,0.62137177,96408.0,96407.0,0.02132334]
[1740289530819,0.62137177,96408.0,96405.0,0.025]
[1740289530820,0.15,96407.0,96405.0,3.4e-07]
[1740289531081,0.76192197,96406.0,96405.0,8.7e-07]
[1740289531281,0.76036577,96406.0,96405.0,8.7e-07]
[1740289531601,0.80736577,96406.0,96405.0,8.7e-07]
[1740289532037,0.305593,96405.0,96404.0,5.4e-07]
[1740289532240,0.1556,96401.0,96400.0,5.4e-07]
[1740289532448,0.28222717,96401.0,96400.0,5.4e-07]
[1740289532673,0.28067068,96401.0,96400.0,5.4e-07]
[1740289532876,0.61037068,96401.0,96400.0,5.4e-07]
[1740289533078,0.45477068,96401.0,96400.0,5.4e-07]
[1740289533286,0.02242499,96401.0,96400.0,0.07870054]
[1740289533680,0.001,96401.0,96400.0,0.07870054]
[1740289533886,0.1566,96401.0,96400.0,0.07870054]
[1740289534093,0.001,96401.0,96400.0,0.07870054]
[1740289534433,0.004,96406.0,96400.0,0.07870054]
[1740289534632,0.207453,96407.0,96400.0,0.07870054]
[1740289534633,0.155598,96402.0,96400.0,0.07870054]
[1740289534803,0.001,96401.0,96400.0,0.07870054]
[1740289535158,0.1566,96401.0,96400.0,5.4e-07]
[1740289535363,0.1556,96401.0,96400.0,5.4e-07]
[1740289536301,0.1576,96401.0,96400.0,5.4e-07]
[1740289536509,0.1556,96401.0,96400.0,5.4e-07]
[1740289536911,0.1576,96401.0,96400.0,5.4e-07]
[1740289537523,0.28105335,96401.0,96400.0,5.4e-07]
[1740289537726,0.28205335,96401.0,96400.0,5.4e-07]
[1740289538137,0.12645335,96401.0,96400.0,5.4e-07]
[1740289538355,0.02280766,96401.0,96400.0,5.4e-07]
[1740289538754,0.1616,96401.0,96400.0,5.4e-07]
[1740289538958,0.1596,96401.0,96400.0,5.4e-07]
[1740289539241,0.1556,96401.0,96400.0,5.4e-07]
[1740289539428,0.1636,96401.0,96400.0,5.4e-07]
[1740289539742,0.1596,96401.0,96400.0,5.4e-07]
[1740289539938,0.1626,96401.0,96400.0,5.4e-07]
[1740289540144,0.26524569,96401.0,96400.0,5.4e-07]
[1740289540354,0.39024569,96401.0,96400.0,5.4e-07]
[1740289540844,0.38324569,96401.0,96400.0,5.4e-07]
[1740289541046,0.38824569,96401.0,96400.0,5.4e-07]
[1740289541588,0.38624569,96401.0,96400.0,5.4e-07]
[1740289542432,0.38724569,96401.0,96400.0,5.4e-07]
[1740289542801,0.39224569,96401.0,96400.0,5.4e-07]
[1740289543244,0.31234569,96401.0,96400.0,5.4e-07]
[1740289544383,0.31234569,96401.0,96391.0,0.0004]
[1740289544384,0.305614,96392.0,96391.0,9e-07]
[1740289544585,0.73795969,96392.0,96391.0,4.408e-05]
[1740289545426,0.43234569,96392.0,96391.0,4.408e-05]
[1740289545628,0.58795969,96392.0,96391.0,4.408e-05]
[1740289545849,0.59095969,96392.0,96391.0,4.408e-05]
[1740289547032,0.58995969,96392.0,96391.0,4.408e-05]
[1740289547231,0.26025969,96392.0,96391.0,4.408e-05]
[1740289547435,0.26125969,96392.0,96391.0,4.408e-05]
[1740289547830,0.26025969,96392.0,96391.0,4.408e-05]
[1740289548236,0.26125969,96392.0,96391.0,4.408e-05]
[1740289552547,0.29038695,96392.0,96391.0,4.408e-05]
[1740289558328,0.29038695,96392.0,96391.0,0.00089488]
[1740289558833,0.29208855,96392.0,96391.0,0.00089488]
[1740289559458,0.13647455,96392.0,96391.0,0.00089488]
[1740289560221,0.13547455,96392.0,96391.0,0.00089488]
[1740289560628,0.13647455,96392.0,96391.0,0.00089488]
[1740289561055,0.03282886,96392.0,96391.0,0.00089488]
[1740289561459,0.03082886,96392.0,96391.0,0.00089488]
[1740289561664,0.0037016,96392.0,96391.0,0.15651088]
[1740289562310,0.0057016,96392.0,96391.0,0.15651088]
[1740289562510,0.0057016,96392.0,96391.0,0.16495246]
[1740289562859,0.0017016,96392.0,96391.0,0.16495246]
[1740289563035,0.0027016,96392.0,96391.0,0.16495246]
[1740289563657,0.0017016,96392.0,96391.0,0.16495246]
[1740289564600,0.0017016,96392.0,96391.0,0.31495246]
[1740289565352,0.0017016,96392.0,96391.0,0.39695246]
[1740289566599,0.0017016,96392.0,96391.0,0.41149331]
[1740289567987,0.0017016,96392.0,96391.0,0.44384604]
[1740289568581,0.0017016,96392.0,96391.0,0.59309173]
[1740289568582,0.0027016,96392.0,96391.0,0.59309173]
[1740289568903,0.0017016,96392.0,96391.0,0.59309173]
[1740289569082,0.0017016,96406.0,96405.0,0.305593]
[1740289569440,0.0017016,96406.0,96405.0,0.387593]
[1740289570614,0.0017016,96406.0,96405.0,0.39083976]
[1740289571023,0.0017016,96406.0,96405.0,0.39383976]
[1740289571773,0.0017016,96406.0,96405.0,0.39583976]
[1740289576271,0.0017016,96406.0,96405.0,0.42084529]
[1740289578409,0.0017016,96406.0,96405.0,0.46854529]
[1740289579048,0.0017016,96406.0,96405.0,0.56919098]
[1740289579252,0.0017016,96406.0,96405.0,0.57119098]
[1740289580021,0.0017016,96406.0,96405.0,0.56819098]
[1740289580449,0.0027016,96406.0,96405.0,0.57519098]
[1740289588743,0.0027016,96406.0,96405.0,0.58038318]
[1740289590526,0.23830776,96433.0,96424.0,0.155562]
[1740289590930,0.02918564,96432.0,96424.0,0.155562]
[1740289591588,0.02918564,96432.0,96416.0,0.00768]
[1740289591786,0.02961621,96432.0,96416.0,0.00768]
[1740289592207,0.155551,96431.0,96422.0,0.155565]
[1740289592462,0.03261621,96432.0,96421.0,0.207422]
[1740289592635,0.02918413,96430.0,96422.0,0.155564]
[1740289592782,0.18473589,96431.0,96422.0,0.155564]
[1740289593006,0.02918337,96429.0,96422.0,0.155564]
[1740289593209,0.02918413,96430.0,96422.0,0.155564]
[1740289593402,0.02918262,96428.0,96416.0,0.00768]
[1740289593608,0.02918337,96429.0,96424.0,0.155561]
[1740289593939,0.02918262,96428.0,96423.0,0.155564]
[1740289594257,0.02918262,96428.0,96425.0,0.155561]
[1740289594497,0.0017016,96431.0,96423.0,0.155564]
[1740289594708,0.003,96429.0,96424.0,0.155562]
[1740289595300,0.002,96428.0,96422.0,0.00843896]
[1740289595439,0.002,96428.0,96423.0,0.155564]
[1740289595648,0.002,96428.0,96425.0,0.00843896]
[1740289596557,0.003,96428.0,96425.0,0.00843896]
[1740289596730,0.002,96428.0,96425.0,0.00843896]
[1740289597247,0.001,96428.0,96425.0,0.00843896]
[1740289597456,0.02918111,96427.0,96425.0,0.00843896]
[1740289598001,0.02918111,96427.0,96426.0,0.00843896]
[1740289598923,0.03118111,96427.0,96426.0,0.00843896]
[1740289599636,0.03218111,96427.0,96426.0,0.00843896]
[1740289600032,0.03118111,96427.0,96426.0,0.16399796]
[1740289600234,0.03018111,96427.0,96426.0,0.16399796]
[1740289600391,0.001,96427.0,96426.0,0.16399796]
[1740289600583,0.003,96427.0,96426.0,0.16399796]
[1740289601729,0.003,96427.0,96426.0,0.00843896]
[1740289601936,0.003,96427.0,96426.0,0.16399796]
[1740289604576,0.003,96427.0,96426.0,0.15880576]
[1740289607172,0.003,96427.0,96426.0,0.00324676]
[1740289607419,0.003,96427.0,96426.0,0.15880576]
[1740289607623,0.003,96427.0,96426.0,0.00324676]
[1740289608001,0.003,96427.0,96426.0,0.15880576]
[1740289608203,0.0799,96427.0,96426.0,0.00324676]
[1740289608579,0.10616085,96427.0,96426.0,0.00324676]
[1740289608802,0.26171885,96427.0,96426.0,0.00324676]
[1740289609317,0.30951885,96427.0,96426.0,0.00324676]
[1740289609926,0.15396085,96427.0,96426.0,0.00324676]
[1740289610282,0.30951885,96427.0,96426.0,0.00324676]
[1740289612448,0.15396085,96427.0,96426.0,0.00324676]
[1740289612634,0.30951885,96427.0,96426.0,0.00324676]
[1740289616021,0.02926085,96427.0,96426.0,0.00324676]
[1740289617582,0.03096225,96427.0,96426.0,0.00324676]
[1740289619571,0.18652025,96427.0,96426.0,0.00324676]
[1740289624805,0.18652025,96427.0,96426.0,0.01102807]
[1740289645278,0.28916594,96427.0,96426.0,0.01102807]
[1740289645500,0.41126594,96427.0,96426.0,0.01102807]
[1740289645867,0.42147943,96427.0,96426.0,0.01102807]
[1740289646407,0.42147943,96427.0,96426.0,0.00324676]
[1740289646701,0.155586,96410.0,96407.0,0.00778131]
[1740289647108,0.02624266,96409.0,96407.0,0.00778131]
[1740289647411,0.18182966,96409.0,96407.0,0.00778131]
[1740289647583,0.02624266,96409.0,96407.0,0.00778131]
[1740289647797,0.02624266,96409.0,96408.0,0.00778131]
[1740289648002,0.18182966,96409.0,96408.0,0.00778131]
[1740289648571,0.18182966,96409.0,96408.0,0.01102707]
[1740289649306,0.18182966,96409.0,96408.0,0.01402707]
[1740289649751,0.18282966,96409.0,96408.0,0.02002707]
[1740289651379,0.18278966,96409.0,96408.0,0.02002707]
[1740289654575,0.18278966,96409.0,96408.0,0.01702707]
[1740289655376,0.18178966,96409.0,96408.0,0.01102707]
[1740289655710,0.18178966,96409.0,96408.0,0.01302707]
[1740289657360,0.18151479,96409.0,96408.0,0.01302707]
[1740289657708,0.18151479,96409.0,96408.0,0.00524576]
[1740289660557,0.18151479,96409.0,96408.0,0.002]
[1740289664291,0.18151479,96409.0,96408.0,0.0028506]
[1740289664742,0.02762899,96409.0,96408.0,0.0028506]
[1740289665280,0.18321599,96409.0,96408.0,0.0028506]
[1740289665416,0.02762899,96409.0,96408.0,0.0028506]
[1740289666670,0.0017012,96409.0,96408.0,0.0028506]
[1740289666835,0.0017012,96409.0,96408.0,0.1584386]
[1740289667846,0.0017012,96409.0,96408.0,0.24927945]
[1740289668056,0.0017012,96409.0,96408.0,0.25829831]
[1740289668265,0.0017012,96409.0,96408.0,0.26029831]
[1740289668556,0.0017012,96409.0,96408.0,0.26229831]
[1740289668761,0.0017012,96409.0,96408.0,0.25829831]
[1740289668956,0.0017012,96409.0,96408.0,0.26429831]
[1740289669799,0.0017012,96409.0,96408.0,0.42673209]
[1740289670251,0.0017012,96409.0,96408.0,0.42473209]
[1740289670401,0.0017012,96409.0,96408.0,0.42073209]
[1740289670582,0.0017012,96409.0,96408.0,0.42373209]
[1740289670784,0.0017012,96409.0,96408.0,0.42873209]
[1740289674343,0.0017012,96409.0,96408.0,0.4339247]
[1740289678796,0.0017014,96427.0,96426.0,0.155559]
[1740289679401,0.02792648,96427.0,96426.0,0.155559]
[1740289679600,0.0017014,96427.0,96426.0,0.155559]
[1740289679801,0.0017014,96427.0,96425.0,0.155561]
[1740289680002,0.0017014,96427.0,96426.0,0.155559]
[1740289680204,0.0037014,96427.0,96426.0,0.155559]
[1740289680382,0.0047014,96427.0,96426.0,0.155559]
[1740289681147,0.0047014,96427.0,96426.0,0.16333219]
[1740289681688,0.0047014,96427.0,96426.0,0.16657786]
[1740289684370,0.0047014,96427.0,96426.0,0.15880467]
[1740289686162,0.0047014,96427.0,96426.0,0.16657786]
[1740289688196,0.0047014,96427.0,96426.0,0.15880467]
[1740289692965,0.0047014,96427.0,96426.0,0.16657786]
[1740289693871,0.0047014,96427.0,96426.0,0.15880467]
[1740289694590,0.0047014,96427.0,96426.0,0.16657252]
[1740289695289,0.0047014,96427.0,96426.0,0.15880467]
[1740289695837,0.0047014,96427.0,96426.0,0.16657754]
[1740289699220,0.0047014,96427.0,96426.0,0.17901413]
[1740289708168,0.0047014,96427.0,96426.0,0.32901413]
[1740289708975,0.0047014,96427.0,96426.0,0.32576846]
[1740289710838,0.0047014,96427.0,96426.0,0.33340846]
[1740289711366,0.0047014,96427.0,96426.0,0.32576846]
[1740289711513,0.0047014,96427.0,96426.0,0.33340846]
[1740289711923,0.0047014,96427.0,96426.0,0.32576846]
[1740289719649,0.03093258,96427.0,96426.0,0.32576846]
[1740289719856,0.03093258,96427.0,96426.0,0.02020946]
[1740289720054,0.23489058,96427.0,96426.0,0.02020946]
[1740289720523,0.31629058,96427.0,96426.0,0.00777287]
[1740289721137,0.41893627,96427.0,96426.0,0.00777287]
[1740289721589,0.41793627,96427.0,96426.0,0.00777287]
[1740289721800,0.41993627,96427.0,96426.0,0.00777287]
[1740289722008,0.15557,96419.0,96418.0,0.00777287]
[1740289722209,0.38437148,96419.0,96418.0,0.00777287]
[1740289722416,0.40964386,96419.0,96418.0,0.00777287]
[1740289723046,0.155572,96418.0,96417.0,0.09318943]
[1740289723277,0.28504511,96418.0,96417.0,0.09318943]
[1740289723442,0.12947311,96418.0,96409.0,0.0008506]
[1740289723604,0.155585,96410.0,96409.0,0.0008506]
[1740289723811,0.18240637,96410.0,96409.0,0.0008506]
[1740289725931,0.18240637,96410.0,96409.0,0.0038506]
[1740289726336,0.18240637,96410.0,96409.0,0.0018506]
[1740289726553,0.18240637,96410.0,96409.0,0.0008506]
[1740289726942,0.18340637,96410.0,96409.0,0.0008506]
[1740289734338,0.36445206,96410.0,96409.0,0.0008506]
[1740289734484,0.41065206,96410.0,96409.0,0.0008506]
[1740289737108,0.41235326,96410.0,96409.0,0.0008506]
[1740289746281,0.33395326,96410.0,96409.0,0.0008506]
[1740289746623,0.17836826,96410.0,96409.0,0.0008506]
[1740289747080,0.33395326,96410.0,96409.0,0.0008506]
[1740289747285,0.13216826,96410.0,96409.0,0.0008506]
[1740289747964,0.02952257,96410.0,96409.0,0.0008506]
[1740289749107,0.18510757,96410.0,96409.0,0.0008506]
[1740289752731,0.02952257,96410.0,96409.0,0.0008506]
[1740289752934,0.18510757,96410.0,96409.0,0.00862898]
[1740289754237,0.18510757,96410.0,96409.0,0.0008506]
[1740289760286,0.02952257,96410.0,96409.0,0.0008506]
[1740289760838,0.02952257,96410.0,96409.0,0.1564376]
[1740289761219,0.0027012,96410.0,96409.0,0.1564376]
[1740289761414,0.0027012,96410.0,96409.0,0.3064376]
[1740289761762,0.0017012,96410.0,96409.0,0.3064376]
[1740289762159,0.0017012,96410.0,96409.0,0.1518506]
[1740289762352,0.0017012,96410.0,96409.0,0.31988304]
[1740289762507,0.0017012,96410.0,96409.0,0.32765684]
[1740289762888,0.0017012,96410.0,96409.0,0.32865684]
[1740289763501,0.0017012,96410.0,96409.0,0.32765684]
[1740289763706,0.0017012,96410.0,96409.0,0.3172114]
[1740289767461,0.0017012,96410.0,96409.0,0.1616244]
[1740289768102,0.0017012,96410.0,96409.0,0.3172114]
[1740289769846,0.0017012,96410.0,96409.0,0.1616244]
[1740289770047,0.0017012,96410.0,96409.0,0.3172114]
[1740289770846,0.0017012,96410.0,96409.0,0.1616244]
[1740289771229,0.02794238,96410.0,96409.0,0.1616244]
[1740289771427,0.1572862,96410.0,96409.0,0.0116244]
[1740289771634,0.31012738,96410.0,96409.0,0.0116244]
[1740289772305,0.31012738,96410.0,96409.0,0.0028506]
[1740289772660,0.31112738,96410.0,96409.0,0.0008506]
[1740289772884,0.31012738,96410.0,96409.0,0.0008506]
[1740289773293,0.41377307,96410.0,96409.0,0.0008506]
[1740289794162,0.42431734,96410.0,96409.0,0.0008506]
[1740289795397,0.41377307,96410.0,96409.0,0.0008506]
[1740289797372,0.42417578,96410.0,96409.0,0.0008506]
[1740289799515,0.41377307,96410.0,96409.0,0.0008506]
[1740289804605,0.406192,96410.0,96409.0,0.0008506]
[1740289805146,0.410192,96410.0,96409.0,0.0018506]
[1740289805316,0.414192,96410.0,96409.0,0.0018506]
[1740289807528,0.743892,96410.0,96409.0,0.0018506]
[1740289820492,0.738892,96410.0,96409.0,0.0008506]
[1740289820703,0.740892,96410.0,96409.0,0.0018506]
[1740289820910,0.745892,96410.0,96409.0,0.0018506]
[1740289823827,0.745892,96410.0,96409.0,6e-07]
[1740289824035,0.584307,96410.0,96408.0,0.0008506]
[1740289824341,0.25978904,96409.0,96408.0,0.0008506]
[1740289824490,0.27687028,96409.0,96408.0,0.0008506]
[1740289824918,0.35507028,96409.0,96408.0,0.0008506]
[1740289826698,0.36207028,96409.0,96408.0,0.0008506]
[1740289827309,0.36907028,96409.0,96408.0,0.0008506]
[1740289828116,0.69877028,96409.0,96408.0,0.0008506]
[1740289835872,0.62057028,96409.0,96408.0,0.0008506]
[1740289841327,0.62227108,96409.0,96408.0,0.0008506]
[1740289873656,0.60827108,96409.0,96408.0,0.0008506]
[1740289873830,0.61527108,96409.0,96408.0,0.0008506]
[1740289873972,0.62227108,96409.0,96408.0,0.0008506]
[1740289876458,0.74857108,96409.0,96408.0,0.0008506]
[1740289877337,0.74157108,96409.0,96408.0,0.0008506]
[1740289877944,0.74857108,96409.0,96408.0,0.0008506]
[1740289886048,0.89857108,96409.0,96408.0,6e-07]
[1740289897981,0.15559,96407.0,96406.0,3e-07]
[1740289898114,0.25979206,96407.0,96406.0,3e-07]
[1740289898339,0.27490544,96407.0,96406.0,3e-07]
[1740289898512,0.87860544,96407.0,96406.0,3e-07]
[1740289898793,0.87860544,96407.0,96366.0,12.57673252]
[1740289898794,0.155654,96367.0,96366.0,12.5662329]
[1740289898923,0.25829969,96367.0,96366.0,12.5662329]
[1740289899321,0.25829969,96367.0,96366.0,12.6457329]
[1740289899548,0.10264569,96367.0,96366.0,12.6935329]
[1740289900122,0.00155661,96378.0,96366.0,12.61407608]